[Event "Titled Tuesday Blitz July 25 Early 2023"]
[White "Vovk, Orest"]
[Black "ZugZwang1201"]
[WhiteFideId "14113490"]
[WhiteElo "2580"]
[BlackElo "2442"]
[Result "1/2-1/2"]
[Round "7"]
[TimeControl "180+2"]
[Date "2023.07.25"]
[WhiteClock "0:02:16"]
[BlackClock "0:00:59"]
[Board "85"]

1. g4 {[%clk 0:03:00]}  c5 {[%clk 0:03:00]} 2. Bg2 {[%clk 0:03:00]}  e6 {[%clk 0:03:00]} 3. h3 {[%clk 0:03:00]}  Nc6 {[%clk 0:03:00]} 4. c4 {[%clk 0:02:59]}  Qc7 {[%clk 0:02:58]} 5. Nc3 {[%clk 0:02:59]}  a6 {[%clk 0:02:58]} 6. d3 {[%clk 0:02:59]}  b6 {[%clk 0:02:58]} 7. Nf3 {[%clk 0:02:59]}  Bb7 {[%clk 0:02:59]} 8. O-O {[%clk 0:02:59]}  d6 {[%clk 0:02:57]} 9. a3 {[%clk 0:02:59]}  Nf6 {[%clk 0:02:56]} 10. Rb1 {[%clk 0:03:00]}  Be7 {[%clk 0:02:51]} 11. b4 {[%clk 0:02:59]}  cxb4 {[%clk 0:02:52]} 12. axb4 {[%clk 0:03:00]}  Ne5 {[%clk 0:02:51]} 13. Nxe5 {[%clk 0:02:59]}  dxe5 {[%clk 0:02:52]} 14. Bxb7 {[%clk 0:02:56]}  Qxb7 {[%clk 0:02:53]} 15. f3 {[%clk 0:02:57]}  Nd7 {[%clk 0:02:40]} 16. Be3 {[%clk 0:02:52]}  g5 {[%clk 0:02:37]} 17. c5 {[%clk 0:02:45]}  bxc5 {[%clk 0:02:21]} 18. bxc5 {[%clk 0:02:44]}  Qc7 {[%clk 0:02:21]} 19. Ne4 {[%clk 0:02:41]}  Rg8 {[%clk 0:02:15]} 20. Qa4 {[%clk 0:02:26]}  f5 {[%clk 0:02:03]} 21. Nd6+ {[%clk 0:02:25]}  Bxd6 {[%clk 0:02:02]} 22. cxd6 {[%clk 0:02:26]}  Qxd6 {[%clk 0:02:03]} 23. Rb7 {[%clk 0:02:24]}  e4 {[%clk 0:01:33]} 24. dxe4 {[%clk 0:02:19]}  Qg3+ {[%clk 0:01:30]} 25. Kh1 {[%clk 0:02:19]}  Qxh3+ {[%clk 0:01:27]} 26. Kg1 {[%clk 0:02:19]}  Qg3+ {[%clk 0:01:25]} 27. Kh1 {[%clk 0:02:19]}  Qh3+ {[%clk 0:00:57]} 28. Kg1 {[%clk 0:02:19]}  Qg3+ {[%clk 0:00:58]} 29. Kh1 {[%clk 0:02:16]}  Qh3+ {[%clk 0:00:59]} 1/2-1/2


[Site "https://www.chess.com"]

[Event "Titled Tuesday Blitz July 25 Early 2023"]
[White "Ilkhomi, Jaloliddin"]
[Black "Fisabilillah, Ummi"]
[WhiteFideId "14700948"]
[BlackFideId "7104804"]
[WhiteElo "2578"]
[BlackElo "2402"]
[Result "1-0"]
[Round "7"]
[TimeControl "180+2"]
[Date "2023.07.25"]
[WhiteClock "0:00:51"]
[BlackClock "0:00:07"]
[Board "87"]

1. d4 {[%clk 0:03:00]}  d5 {[%clk 0:02:57]} 2. Bf4 {[%clk 0:02:59]}  c5 {[%clk 0:02:55]} 3. e3 {[%clk 0:02:59]}  Nc6 {[%clk 0:02:55]} 4. c3 {[%clk 0:02:59]}  Nf6 {[%clk 0:02:51]} 5. Nd2 {[%clk 0:02:59]}  Bg4 {[%clk 0:02:45]} 6. Qb3 {[%clk 0:02:57]}  Qc8 {[%clk 0:02:41]} 7. Ngf3 {[%clk 0:02:55]}  Bxf3 {[%clk 0:02:33]} 8. Nxf3 {[%clk 0:02:56]}  e6 {[%clk 0:02:33]} 9. Ne5 {[%clk 0:02:56]}  Nxe5 {[%clk 0:02:30]} 10. Bxe5 {[%clk 0:02:57]}  Nd7 {[%clk 0:02:29]} 11. Bf4 {[%clk 0:02:54]}  Be7 {[%clk 0:02:22]} 12. Be2 {[%clk 0:02:54]}  O-O {[%clk 0:02:21]} 13. O-O {[%clk 0:02:52]}  Bf6 {[%clk 0:02:12]} 14. Rad1 {[%clk 0:02:41]}  a6 {[%clk 0:02:07]} 15. Bg3 {[%clk 0:02:31]}  b5 {[%clk 0:02:07]} 16. dxc5 {[%clk 0:02:30]}  Nxc5 {[%clk 0:02:06]} 17. Qc2 {[%clk 0:02:30]}  Ne4 {[%clk 0:02:07]} 18. Bd3 {[%clk 0:02:28]}  Nxg3 {[%clk 0:02:05]} 19. hxg3 {[%clk 0:02:22]}  h6 {[%clk 0:01:58]} 20. e4 {[%clk 0:02:21]}  dxe4 {[%clk 0:01:57]} 21. Bxe4 {[%clk 0:02:22]}  Rb8 {[%clk 0:01:58]} 22. Qe2 {[%clk 0:02:17]}  Qc7 {[%clk 0:01:56]} 23. Rd2 {[%clk 0:02:15]}  Rfd8 {[%clk 0:01:56]} 24. Rfd1 {[%clk 0:02:15]}  Rxd2 {[%clk 0:01:56]} 25. Rxd2 {[%clk 0:02:16]}  Rd8 {[%clk 0:01:57]} 26. Bc2 {[%clk 0:02:15]}  Rxd2 {[%clk 0:01:51]} 27. Qxd2 {[%clk 0:02:15]}  Qd8 {[%clk 0:01:52]} 28. Qe3 {[%clk 0:02:10]}  g6 {[%clk 0:01:45]} 29. g4 {[%clk 0:02:00]}  Kg7 {[%clk 0:01:44]} 30. g3 {[%clk 0:01:59]}  Qd5 {[%clk 0:01:41]} 31. a4 {[%clk 0:01:46]}  bxa4 {[%clk 0:01:33]} 32. Bxa4 {[%clk 0:01:31]}  Qa5 {[%clk 0:01:32]} 33. Be8 {[%clk 0:01:24]}  Qd8 {[%clk 0:01:01]} 34. Bc6 {[%clk 0:01:14]}  Qd1+ {[%clk 0:00:59]} 35. Kg2 {[%clk 0:01:14]}  Qxg4 {[%clk 0:00:49]} 36. Qa7 {[%clk 0:01:15]}  e5 {[%clk 0:00:32]} 37. Bd5 {[%clk 0:01:04]}  Be7 {[%clk 0:00:14]} 38. Qxe7 {[%clk 0:01:03]}  Qf5 {[%clk 0:00:15]} 39. Qb7 {[%clk 0:00:56]}  a5 {[%clk 0:00:13]} 40. Be4 {[%clk 0:00:56]}  Qf6 {[%clk 0:00:13]} 41. Qc6 {[%clk 0:00:56]}  Qe7 {[%clk 0:00:12]} 42. Qa8 {[%clk 0:00:54]}  h5 {[%clk 0:00:13]} 43. Qxa5 {[%clk 0:00:54]}  h4 {[%clk 0:00:14]} 44. gxh4 {[%clk 0:00:51]}  Qxh4 {[%clk 0:00:13]} 45. Qxe5+ {[%clk 0:00:52]}  Kh6 {[%clk 0:00:07]} 46. Qh8+ {[%clk 0:00:51]} 1-0


[Site "https://www.chess.com"]

[Event "Titled Tuesday Blitz July 25 Early 2023"]
[White "Trifan, Andrei Ioan"]
[Black "LLariMarc"]
[WhiteFideId "12967068"]
[WhiteElo "2577"]
[BlackElo "2366"]
[Result "1-0"]
[Round "7"]
[TimeControl "180+2"]
[Date "2023.07.25"]
[WhiteClock "0:00:12"]
[BlackClock "0:00:12"]
[Board "88"]

1. e4 {[%clk 0:02:59]}  e6 {[%clk 0:02:58]} 2. d4 {[%clk 0:02:55]}  d5 {[%clk 0:02:58]} 3. Nc3 {[%clk 0:02:55]}  Nf6 {[%clk 0:02:57]} 4. Bg5 {[%clk 0:02:54]}  h6 {[%clk 0:02:57]} 5. Bxf6 {[%clk 0:02:51]}  Qxf6 {[%clk 0:02:57]} 6. exd5 {[%clk 0:02:50]}  Bb4 {[%clk 0:02:58]} 7. dxe6 {[%clk 0:02:45]}  Bxe6 {[%clk 0:02:58]} 8. Nf3 {[%clk 0:02:40]}  O-O {[%clk 0:02:55]} 9. Be2 {[%clk 0:02:31]}  Nc6 {[%clk 0:02:56]} 10. a3 {[%clk 0:02:30]}  Bxc3+ {[%clk 0:02:55]} 11. bxc3 {[%clk 0:02:31]}  Rad8 {[%clk 0:02:50]} 12. O-O {[%clk 0:02:30]}  Rfe8 {[%clk 0:02:50]} 13. a4 {[%clk 0:02:23]}  Na5 {[%clk 0:02:47]} 14. Ne5 {[%clk 0:02:19]}  Bf5 {[%clk 0:02:41]} 15. Bd3 {[%clk 0:02:10]}  b6 {[%clk 0:02:37]} 16. Qf3 {[%clk 0:02:02]}  Bxd3 {[%clk 0:02:35]} 17. Qxd3 {[%clk 0:01:52]}  Qe6 {[%clk 0:02:23]} 18. h3 {[%clk 0:01:43]}  c5 {[%clk 0:02:22]} 19. Rfe1 {[%clk 0:01:41]}  Qd6 {[%clk 0:02:20]} 20. Rad1 {[%clk 0:01:32]}  Qc7 {[%clk 0:02:10]} 21. Nc4 {[%clk 0:01:11]}  Rxe1+ {[%clk 0:02:02]} 22. Rxe1 {[%clk 0:01:11]}  cxd4 {[%clk 0:02:02]} 23. Nxa5 {[%clk 0:01:10]}  bxa5 {[%clk 0:01:41]} 24. cxd4 {[%clk 0:01:07]}  Qd7 {[%clk 0:01:37]} 25. Rd1 {[%clk 0:00:56]}  Qxa4 {[%clk 0:01:36]} 26. d5 {[%clk 0:00:55]}  Qb4 {[%clk 0:01:27]} 27. c4 {[%clk 0:00:48]}  a4 {[%clk 0:01:27]} 28. Rb1 {[%clk 0:00:34]}  Qa5 {[%clk 0:01:20]} 29. d6 {[%clk 0:00:22]}  a3 {[%clk 0:01:12]} 30. Qd4 {[%clk 0:00:19]}  a2 {[%clk 0:01:10]} 31. Ra1 {[%clk 0:00:19]}  Qb6 {[%clk 0:01:08]} 32. c5 {[%clk 0:00:19]}  Qb1+ {[%clk 0:01:06]} 33. Kh2 {[%clk 0:00:19]}  h5 {[%clk 0:00:51]} 34. g3 {[%clk 0:00:18]}  Kh7 {[%clk 0:00:45]} 35. h4 {[%clk 0:00:12]}  a5 {[%clk 0:00:30]} 36. Qd1 {[%clk 0:00:12]}  Qb4 {[%clk 0:00:25]} 37. Qxh5+ {[%clk 0:00:12]}  Kg8 {[%clk 0:00:24]} 38. Rxa2 {[%clk 0:00:12]}  a4 {[%clk 0:00:21]} 39. Re2 {[%clk 0:00:11]}  a3 {[%clk 0:00:20]} 40. d7 {[%clk 0:00:11]}  Qb8 {[%clk 0:00:15]} 41. c6 {[%clk 0:00:12]}  a2 {[%clk 0:00:14]} 42. c7 {[%clk 0:00:11]}  a1=Q {[%clk 0:00:12]} 43. cxd8=Q+ {[%clk 0:00:11]}  Qxd8 {[%clk 0:00:11]} 44. Re8+ {[%clk 0:00:12]}  Qxe8 {[%clk 0:00:12]} 45. dxe8=Q# {[%clk 0:00:12]} 1-0


[Site "https://www.chess.com"]

[Event "Titled Tuesday Blitz July 25 Early 2023"]
[White "Richter, Nils"]
[Black "kiwibobo"]
[WhiteFideId "12990809"]
[WhiteElo "2576"]
[BlackElo "2341"]
[Result "1-0"]
[Round "7"]
[TimeControl "180+2"]
[Date "2023.07.25"]
[WhiteClock "0:01:31"]
[BlackClock "0:00:02"]
[Board "89"]

1. d4 {[%clk 0:02:58]}  Nf6 {[%clk 0:02:59]} 2. c4 {[%clk 0:02:58]}  g6 {[%clk 0:03:00]} 3. Nc3 {[%clk 0:02:57]}  d5 {[%clk 0:03:00]} 4. cxd5 {[%clk 0:02:56]}  Nxd5 {[%clk 0:03:01]} 5. e4 {[%clk 0:02:57]}  Nxc3 {[%clk 0:03:02]} 6. bxc3 {[%clk 0:02:58]}  Bg7 {[%clk 0:03:02]} 7. Nf3 {[%clk 0:02:59]}  c5 {[%clk 0:03:02]} 8. Be3 {[%clk 0:03:00]}  Qa5 {[%clk 0:03:01]} 9. Qd2 {[%clk 0:03:00]}  O-O {[%clk 0:03:01]} 10. Rc1 {[%clk 0:02:57]}  Rd8 {[%clk 0:03:01]} 11. d5 {[%clk 0:02:57]}  e6 {[%clk 0:03:02]} 12. h4 {[%clk 0:02:29]}  exd5 {[%clk 0:02:45]} 13. exd5 {[%clk 0:02:30]}  Bg4 {[%clk 0:02:37]} 14. Be2 {[%clk 0:02:27]}  Nd7 {[%clk 0:02:32]} 15. c4 {[%clk 0:02:26]}  Qxd2+ {[%clk 0:02:28]} 16. Nxd2 {[%clk 0:02:26]}  Bxe2 {[%clk 0:02:26]} 17. Kxe2 {[%clk 0:02:27]}  b6 {[%clk 0:02:22]} 18. h5 {[%clk 0:02:24]}  Nf6 {[%clk 0:02:09]} 19. h6 {[%clk 0:02:23]}  Bf8 {[%clk 0:02:07]} 20. f3 {[%clk 0:02:19]}  Ne8 {[%clk 0:02:06]} 21. g4 {[%clk 0:02:15]}  Nd6 {[%clk 0:02:04]} 22. Kd3 {[%clk 0:02:12]}  Re8 {[%clk 0:01:36]} 23. Bf4 {[%clk 0:02:07]}  Rad8 {[%clk 0:01:23]} 24. Rhe1 {[%clk 0:01:54]}  f5 {[%clk 0:01:19]} 25. g5 {[%clk 0:01:45]}  Rxe1 {[%clk 0:01:12]} 26. Rxe1 {[%clk 0:01:46]}  Re8 {[%clk 0:01:11]} 27. Rxe8 {[%clk 0:01:41]}  Nxe8 {[%clk 0:01:12]} 28. Bb8 {[%clk 0:01:41]}  Nd6 {[%clk 0:00:55]} 29. Bxa7 {[%clk 0:01:32]}  Nc8 {[%clk 0:00:37]} 30. Bb8 {[%clk 0:01:32]}  Kf7 {[%clk 0:00:32]} 31. f4 {[%clk 0:01:31]}  Nd6 {[%clk 0:00:25]} 32. Nf3 {[%clk 0:01:31]}  Ke8 {[%clk 0:00:18]} 33. Ne5 {[%clk 0:01:31]}  Be7 {[%clk 0:00:06]} 34. Nxg6 {[%clk 0:01:29]}  hxg6 {[%clk 0:00:06]} 35. Bxd6 {[%clk 0:01:30]}  Bxd6 {[%clk 0:00:02]} 36. h7 {[%clk 0:01:31]} 1-0


[Site "https://www.chess.com"]

[Event "Titled Tuesday Blitz July 25 Early 2023"]
[White "Ruge, Edison"]
[Black "Garv Gaur"]
[WhiteFideId "4401000"]
[BlackFideId "45030839"]
[WhiteElo "2249"]
[BlackElo "2561"]
[Result "0-1"]
[Round "7"]
[TimeControl "180+2"]
[Date "2023.07.25"]
[WhiteClock "0:00:00"]
[BlackClock "0:00:08"]
[Board "90"]

1. e4 {[%clk 0:03:00]}  g6 {[%clk 0:02:54]} 2. d4 {[%clk 0:03:00]}  Bg7 {[%clk 0:02:47]} 3. Nc3 {[%clk 0:03:00]}  c6 {[%clk 0:02:47]} 4. Be2 {[%clk 0:03:01]}  d5 {[%clk 0:02:48]} 5. e5 {[%clk 0:03:00]}  Nh6 {[%clk 0:02:43]} 6. g4 {[%clk 0:03:00]}  Ng8 {[%clk 0:02:41]} 7. Be3 {[%clk 0:02:58]}  e6 {[%clk 0:02:33]} 8. Qd2 {[%clk 0:02:57]}  Qb6 {[%clk 0:02:33]} 9. Na4 {[%clk 0:02:55]}  Qc7 {[%clk 0:02:32]} 10. b3 {[%clk 0:02:55]}  Nd7 {[%clk 0:02:33]} 11. h4 {[%clk 0:02:51]}  h6 {[%clk 0:02:30]} 12. Nf3 {[%clk 0:02:39]}  b6 {[%clk 0:02:30]} 13. h5 {[%clk 0:02:36]}  g5 {[%clk 0:02:30]} 14. Rc1 {[%clk 0:02:31]}  b5 {[%clk 0:02:23]} 15. Nb2 {[%clk 0:02:28]}  a6 {[%clk 0:02:18]} 16. c4 {[%clk 0:02:28]}  Ne7 {[%clk 0:02:18]} 17. cxd5 {[%clk 0:02:13]}  Nxd5 {[%clk 0:02:17]} 18. Nd3 {[%clk 0:02:08]}  Bf8 {[%clk 0:02:10]} 19. O-O {[%clk 0:02:05]}  Bb7 {[%clk 0:02:08]} 20. Nfe1 {[%clk 0:01:46]}  f5 {[%clk 0:02:00]} 21. exf6 {[%clk 0:01:43]}  Bd6 {[%clk 0:02:00]} 22. f7+ {[%clk 0:01:32]}  Kxf7 {[%clk 0:01:58]} 23. Nf3 {[%clk 0:01:32]}  Raf8 {[%clk 0:01:51]} 24. Bxg5 {[%clk 0:01:31]}  hxg5 {[%clk 0:01:45]} 25. Qxg5 {[%clk 0:01:31]}  Rhg8 {[%clk 0:01:40]} 26. Qh6 {[%clk 0:01:29]}  Rxg4+ {[%clk 0:01:39]} 27. Kh1 {[%clk 0:01:27]}  Bf4 {[%clk 0:01:34]} 28. Nde5+ {[%clk 0:01:00]}  Nxe5 {[%clk 0:01:33]} 29. Nxe5+ {[%clk 0:01:00]}  Bxe5 {[%clk 0:01:34]} 30. Bxg4 {[%clk 0:00:58]}  Bf6 {[%clk 0:01:17]} 31. Qg6+ {[%clk 0:00:31]}  Ke7 {[%clk 0:01:16]} 32. Rce1 {[%clk 0:00:31]}  Bc8 {[%clk 0:01:12]} 33. Re4 {[%clk 0:00:20]}  Nc3 {[%clk 0:00:34]} 34. Re3 {[%clk 0:00:19]}  Nd5 {[%clk 0:00:34]} 35. Rf3 {[%clk 0:00:19]}  Rf7 {[%clk 0:00:25]} 36. Re1 {[%clk 0:00:18]}  Rg7 {[%clk 0:00:24]} 37. Qe4 {[%clk 0:00:12]}  Qd6 {[%clk 0:00:21]} 38. Bh3 {[%clk 0:00:11]}  c5 {[%clk 0:00:15]} 39. dxc5 {[%clk 0:00:09]}  Qc6 {[%clk 0:00:16]} 40. Bxe6 {[%clk 0:00:09]}  Bxe6 {[%clk 0:00:15]} 41. h6 {[%clk 0:00:07]}  Rg5 {[%clk 0:00:15]} 42. h7 {[%clk 0:00:07]}  Rh5+ {[%clk 0:00:15]} 43. Kg1 {[%clk 0:00:07]}  Qc8 {[%clk 0:00:14]} 44. Kf1 {[%clk 0:00:04]}  Rh1+ {[%clk 0:00:10]} 45. Kg2 {[%clk 0:00:02]}  Rxe1 {[%clk 0:00:07]} 46. Qxe1 {[%clk 0:00:01]}  Qh8 {[%clk 0:00:08]} 47. Rg3 {[%clk 0:00:01]}  Qxh7 {[%clk 0:00:08]} 48. c6 {[%clk 0:00:01]}  Nf4+ {[%clk 0:00:08]} 49. Kf3 {[%clk 0:00:01]}  Qh5+ {[%clk 0:00:08]} 50. Kxf4 {[%clk 0:00:00]}  Qf5+ {[%clk 0:00:08]} 0-1


[Site "https://www.chess.com"]

[Event "Titled Tuesday Blitz July 25 Early 2023"]
[White "Atakhan, Abtin"]
[Black "luksona14"]
[WhiteFideId "22502203"]
[WhiteElo "2741"]
[BlackElo "2490"]
[Result "1-0"]
[Round "7"]
[TimeControl "180+2"]
[Date "2023.07.25"]
[WhiteClock "0:00:35"]
[BlackClock "0:00:12"]
[Board "91"]

1. Nf3 {[%clk 0:03:00]}  Nf6 {[%clk 0:02:59]} 2. g3 {[%clk 0:03:01]}  e6 {[%clk 0:02:59]} 3. Bg2 {[%clk 0:03:01]}  d5 {[%clk 0:03:00]} 4. O-O {[%clk 0:03:02]}  Be7 {[%clk 0:03:00]} 5. c4 {[%clk 0:03:02]}  O-O {[%clk 0:03:01]} 6. b3 {[%clk 0:03:03]}  b6 {[%clk 0:02:54]} 7. d4 {[%clk 0:03:03]}  Bb7 {[%clk 0:02:54]} 8. Nc3 {[%clk 0:03:03]}  c6 {[%clk 0:02:55]} 9. Ne5 {[%clk 0:03:00]}  Nbd7 {[%clk 0:02:54]} 10. Nd3 {[%clk 0:02:56]}  Ba6 {[%clk 0:02:52]} 11. Bb2 {[%clk 0:02:54]}  Rc8 {[%clk 0:02:50]} 12. Rc1 {[%clk 0:02:51]}  dxc4 {[%clk 0:02:50]} 13. bxc4 {[%clk 0:02:51]}  Bxc4 {[%clk 0:02:51]} 14. a4 {[%clk 0:02:41]}  c5 {[%clk 0:02:42]} 15. Nb5 {[%clk 0:02:39]}  Bxb5 {[%clk 0:02:39]} 16. axb5 {[%clk 0:02:40]}  Nd5 {[%clk 0:02:36]} 17. Qa4 {[%clk 0:02:38]}  Qc7 {[%clk 0:02:30]} 18. e4 {[%clk 0:02:37]}  N5f6 {[%clk 0:02:29]} 19. d5 {[%clk 0:02:35]}  exd5 {[%clk 0:02:25]} 20. exd5 {[%clk 0:02:34]}  Bd6 {[%clk 0:02:25]} 21. Ra1 {[%clk 0:02:28]}  Ra8 {[%clk 0:02:24]} 22. Qc4 {[%clk 0:02:21]}  Rfe8 {[%clk 0:02:22]} 23. Ra4 {[%clk 0:02:19]}  Re7 {[%clk 0:01:48]} 24. Rfa1 {[%clk 0:02:18]}  Nf8 {[%clk 0:01:35]} 25. Ra6 {[%clk 0:02:14]}  Rae8 {[%clk 0:01:31]} 26. Bxf6 {[%clk 0:02:12]}  gxf6 {[%clk 0:01:30]} 27. h4 {[%clk 0:01:51]}  Ng6 {[%clk 0:01:28]} 28. Qg4 {[%clk 0:01:51]}  Kh8 {[%clk 0:01:28]} 29. Qf5 {[%clk 0:01:50]}  Be5 {[%clk 0:01:27]} 30. Rxa7 {[%clk 0:01:48]}  Qxa7 {[%clk 0:01:20]} 31. Rxa7 {[%clk 0:01:49]}  Rxa7 {[%clk 0:01:20]} 32. Nxe5 {[%clk 0:01:48]}  fxe5 {[%clk 0:01:21]} 33. h5 {[%clk 0:01:45]}  Kg7 {[%clk 0:01:14]} 34. hxg6 {[%clk 0:01:31]}  hxg6 {[%clk 0:01:13]} 35. Qd3 {[%clk 0:01:31]}  Rd7 {[%clk 0:01:10]} 36. Qa3 {[%clk 0:01:28]}  Rd6 {[%clk 0:01:10]} 37. Qa7 {[%clk 0:01:26]}  e4 {[%clk 0:01:03]} 38. Qa2 {[%clk 0:01:15]}  Re5 {[%clk 0:00:55]} 39. Qb2 {[%clk 0:01:00]}  Rxd5 {[%clk 0:00:54]} 40. Bxe4 {[%clk 0:00:58]}  Rd4 {[%clk 0:00:53]} 41. Bf3 {[%clk 0:00:54]}  Rf5 {[%clk 0:00:46]} 42. Kg2 {[%clk 0:00:53]}  Rf6 {[%clk 0:00:43]} 43. Qc3 {[%clk 0:00:47]}  g5 {[%clk 0:00:41]} 44. Bc6 {[%clk 0:00:45]}  Rfd6 {[%clk 0:00:32]} 45. Qe3 {[%clk 0:00:45]}  Kg6 {[%clk 0:00:30]} 46. Qe8 {[%clk 0:00:44]}  Rd2 {[%clk 0:00:29]} 47. Qg8+ {[%clk 0:00:42]}  Kf6 {[%clk 0:00:28]} 48. Qb8 {[%clk 0:00:41]}  c4 {[%clk 0:00:19]} 49. Qxb6 {[%clk 0:00:39]}  c3 {[%clk 0:00:19]} 50. Qc5 {[%clk 0:00:37]}  c2 {[%clk 0:00:19]} 51. b6 {[%clk 0:00:36]}  Rd8 {[%clk 0:00:15]} 52. b7 {[%clk 0:00:36]}  Kg7 {[%clk 0:00:15]} 53. Qxg5+ {[%clk 0:00:36]}  Kh7 {[%clk 0:00:15]} 54. Be4+ {[%clk 0:00:35]}  Kh8 {[%clk 0:00:15]} 55. Qh6+ {[%clk 0:00:34]}  Kg8 {[%clk 0:00:12]} 56. Bh7+ {[%clk 0:00:35]} 1-0


[Site "https://www.chess.com"]

[Event "Titled Tuesday Blitz July 25 Early 2023"]
[White "MateoReyes"]
[Black "Dehtiarov, Roman"]
[BlackFideId "14186640"]
[WhiteElo "2483"]
[BlackElo "2716"]
[Result "1-0"]
[Round "7"]
[TimeControl "180+2"]
[Date "2023.07.25"]
[WhiteClock "0:01:16"]
[BlackClock "0:00:00"]
[Board "93"]

1. Nf3 {[%clk 0:03:00]}  Nf6 {[%clk 0:02:59]} 2. d4 {[%clk 0:02:59]}  e6 {[%clk 0:02:58]} 3. c4 {[%clk 0:02:59]}  b6 {[%clk 0:02:58]} 4. g3 {[%clk 0:02:58]}  Ba6 {[%clk 0:02:58]} 5. b3 {[%clk 0:02:56]}  Bb4+ {[%clk 0:02:56]} 6. Nbd2 {[%clk 0:02:54]}  d5 {[%clk 0:02:50]} 7. Qc2 {[%clk 0:02:50]}  O-O {[%clk 0:02:46]} 8. Bg2 {[%clk 0:02:50]}  Nbd7 {[%clk 0:02:41]} 9. O-O {[%clk 0:02:49]}  c6 {[%clk 0:02:30]} 10. a3 {[%clk 0:02:48]}  Bd6 {[%clk 0:02:28]} 11. Re1 {[%clk 0:02:45]}  e5 {[%clk 0:01:57]} 12. e4 {[%clk 0:02:38]}  dxe4 {[%clk 0:01:48]} 13. Nxe4 {[%clk 0:02:35]}  Nxe4 {[%clk 0:01:49]} 14. Qxe4 {[%clk 0:02:34]}  Nf6 {[%clk 0:00:53]} 15. Qxc6 {[%clk 0:02:31]}  exd4 {[%clk 0:00:32]} 16. Nxd4 {[%clk 0:02:16]}  Rb8 {[%clk 0:00:14]} 17. Nf5 {[%clk 0:02:12]}  Bc5 {[%clk 0:00:09]} 18. Qf3 {[%clk 0:02:00]}  Bb7 {[%clk 0:00:07]} 19. Qf4 {[%clk 0:01:58]}  Bxg2 {[%clk 0:00:06]} 20. Kxg2 {[%clk 0:01:58]}  Kh8 {[%clk 0:00:01]} 21. Bb2 {[%clk 0:01:57]}  Rg8 {[%clk 0:00:01]} 22. Nxg7 {[%clk 0:01:55]}  Kxg7 {[%clk 0:00:02]} 23. Qg5+ {[%clk 0:01:54]}  Kf8 {[%clk 0:00:03]} 24. Qxf6 {[%clk 0:01:52]}  Qxf6 {[%clk 0:00:03]} 25. Bxf6 {[%clk 0:01:52]}  Rg6 {[%clk 0:00:03]} 26. Bc3 {[%clk 0:01:51]}  a5 {[%clk 0:00:04]} 27. b4 {[%clk 0:01:49]}  axb4 {[%clk 0:00:04]} 28. axb4 {[%clk 0:01:49]}  Bd6 {[%clk 0:00:05]} 29. Ra7 {[%clk 0:01:47]}  Rc8 {[%clk 0:00:04]} 30. Bd4 {[%clk 0:01:41]}  Bxb4 {[%clk 0:00:02]} 31. Rb1 {[%clk 0:01:28]}  Bc5 {[%clk 0:00:03]} 32. Bc3 {[%clk 0:01:23]}  Re6 {[%clk 0:00:02]} 33. Rb2 {[%clk 0:01:19]}  h6 {[%clk 0:00:03]} 34. h4 {[%clk 0:01:17]}  h5 {[%clk 0:00:02]} 35. Rd7 {[%clk 0:01:16]}  Kg8 {[%clk 0:00:00]} 36. Rd5 {[%clk 0:01:16]} 1-0


[Site "https://www.chess.com"]

[Event "Titled Tuesday Blitz July 25 Early 2023"]
[White "Goroshkov, Maksym"]
[Black "Heinemann, Josefine"]
[WhiteFideId "14142716"]
[BlackFideId "12900460"]
[WhiteElo "2683"]
[BlackElo "2469"]
[Result "1-0"]
[Round "7"]
[TimeControl "180+2"]
[Date "2023.07.25"]
[WhiteClock "0:00:43"]
[BlackClock "0:00:14"]
[Board "95"]

1. e4 {[%clk 0:02:29]}  c5 {[%clk 0:02:57]} 2. d4 {[%clk 0:02:28]}  cxd4 {[%clk 0:02:55]} 3. c3 {[%clk 0:02:29]}  Nf6 {[%clk 0:02:54]} 4. e5 {[%clk 0:02:29]}  Nd5 {[%clk 0:02:54]} 5. Bc4 {[%clk 0:02:30]}  Nb6 {[%clk 0:02:52]} 6. Bb3 {[%clk 0:02:30]}  d6 {[%clk 0:02:51]} 7. exd6 {[%clk 0:02:30]}  e6 {[%clk 0:02:48]} 8. cxd4 {[%clk 0:02:30]}  Bxd6 {[%clk 0:02:47]} 9. Nf3 {[%clk 0:02:29]}  O-O {[%clk 0:02:47]} 10. O-O {[%clk 0:02:30]}  Nc6 {[%clk 0:02:47]} 11. Nc3 {[%clk 0:02:31]}  Nb4 {[%clk 0:02:46]} 12. Re1 {[%clk 0:02:25]}  N4d5 {[%clk 0:02:45]} 13. a4 {[%clk 0:02:24]}  Bd7 {[%clk 0:02:42]} 14. a5 {[%clk 0:02:23]}  Nxc3 {[%clk 0:02:42]} 15. bxc3 {[%clk 0:02:23]}  Nd5 {[%clk 0:02:43]} 16. c4 {[%clk 0:02:23]}  Nf6 {[%clk 0:02:43]} 17. c5 {[%clk 0:02:23]}  Be7 {[%clk 0:02:43]} 18. a6 {[%clk 0:02:20]}  Bc6 {[%clk 0:02:39]} 19. Ne5 {[%clk 0:02:20]}  Bd5 {[%clk 0:02:32]} 20. axb7 {[%clk 0:02:20]}  Bxb7 {[%clk 0:02:29]} 21. c6 {[%clk 0:02:19]}  Bc8 {[%clk 0:02:29]} 22. Ba3 {[%clk 0:02:17]}  Bxa3 {[%clk 0:02:28]} 23. Rxa3 {[%clk 0:02:17]}  Qb6 {[%clk 0:02:23]} 24. Bc2 {[%clk 0:02:10]}  Rd8 {[%clk 0:02:18]} 25. Rb3 {[%clk 0:01:38]}  Qc7 {[%clk 0:02:03]} 26. Rh3 {[%clk 0:01:34]}  h6 {[%clk 0:01:53]} 27. Rh4 {[%clk 0:01:19]}  a5 {[%clk 0:01:51]} 28. Qd3 {[%clk 0:01:12]}  a4 {[%clk 0:01:45]} 29. Rf4 {[%clk 0:01:11]}  Qe7 {[%clk 0:01:00]} 30. Ng4 {[%clk 0:01:03]}  Ba6 {[%clk 0:00:19]} 31. Nxf6+ {[%clk 0:01:02]}  Kf8 {[%clk 0:00:19]} 32. Qh7 {[%clk 0:01:00]}  Qb4 {[%clk 0:00:19]} 33. Qg8+ {[%clk 0:00:47]}  Ke7 {[%clk 0:00:18]} 34. Nd5+ {[%clk 0:00:48]}  Rxd5 {[%clk 0:00:18]} 35. Qxf7+ {[%clk 0:00:45]}  Kd8 {[%clk 0:00:18]} 36. Qf8+ {[%clk 0:00:42]}  Qxf8 {[%clk 0:00:16]} 37. Rxf8+ {[%clk 0:00:43]}  Kc7 {[%clk 0:00:14]} 38. Rxa8 {[%clk 0:00:43]} 1-0


[Site "https://www.chess.com"]

[Event "Titled Tuesday Blitz July 25 Early 2023"]
[White "Iskusnyh, Sergei"]
[Black "Ljukin, Sergei"]
[WhiteFideId "4120027"]
[BlackFideId "14102200"]
[WhiteElo "2621"]
[BlackElo "2456"]
[Result "1-0"]
[Round "7"]
[TimeControl "180+2"]
[Date "2023.07.25"]
[WhiteClock "0:00:36"]
[BlackClock "0:00:00"]
[Board "98"]

1. d4 {[%clk 0:03:00]}  d5 {[%clk 0:02:59]} 2. c4 {[%clk 0:03:00]}  c6 {[%clk 0:02:59]} 3. Nf3 {[%clk 0:03:00]}  Nf6 {[%clk 0:03:00]} 4. e3 {[%clk 0:03:00]}  e6 {[%clk 0:03:00]} 5. b3 {[%clk 0:02:58]}  Bb4+ {[%clk 0:02:59]} 6. Nbd2 {[%clk 0:02:53]}  Bd6 {[%clk 0:02:59]} 7. Bb2 {[%clk 0:02:50]}  Nbd7 {[%clk 0:02:59]} 8. Bd3 {[%clk 0:02:49]}  Qe7 {[%clk 0:02:59]} 9. Ne5 {[%clk 0:02:33]}  Ba3 {[%clk 0:02:48]} 10. Bxa3 {[%clk 0:02:29]}  Qxa3 {[%clk 0:02:47]} 11. O-O {[%clk 0:02:29]}  O-O {[%clk 0:02:43]} 12. Qc2 {[%clk 0:02:28]}  h6 {[%clk 0:02:36]} 13. f4 {[%clk 0:02:27]}  c5 {[%clk 0:01:50]} 14. Ndf3 {[%clk 0:02:22]}  cxd4 {[%clk 0:01:38]} 15. exd4 {[%clk 0:02:20]}  b6 {[%clk 0:01:36]} 16. f5 {[%clk 0:01:57]}  Bb7 {[%clk 0:01:25]} 17. Nxd7 {[%clk 0:01:50]}  Nxd7 {[%clk 0:01:24]} 18. fxe6 {[%clk 0:01:50]}  fxe6 {[%clk 0:01:24]} 19. Bh7+ {[%clk 0:01:36]}  Kh8 {[%clk 0:01:24]} 20. Nh4 {[%clk 0:01:36]}  Rxf1+ {[%clk 0:01:19]} 21. Rxf1 {[%clk 0:01:34]}  Nf8 {[%clk 0:01:19]} 22. Bd3 {[%clk 0:00:55]}  dxc4 {[%clk 0:00:58]} 23. bxc4 {[%clk 0:00:51]}  Qd6 {[%clk 0:00:56]} 24. Qf2 {[%clk 0:00:49]}  Rd8 {[%clk 0:00:34]} 25. Kh1 {[%clk 0:00:36]}  Kg8 {[%clk 0:00:02]} 26. Qf7+ {[%clk 0:00:35]}  Kh8 {[%clk 0:00:00]} 27. Ng6+ {[%clk 0:00:36]} 1-0


[Site "https://www.chess.com"]